fUST/lending_fUST_20250723
["ID","MTS","AMOUNT","RATE_DAILY","PERIOD"]
[374111278,1753210267730,-150.0,0.00021918,2]
[374111279,1753210267739,-150.0,0.00021918,2]
[374111280,1753210267749,-200.0,0.00021918,2]
[374111281,1753210267758,-292.57434438,0.00021928,2]
[374111282,1753210267767,-32663.07,0.00022,2]
[374111283,1753210267777,-2000.0,0.00022016,2]
[374111284,1753210267786,-1005.07123105,0.00022016,2]
[374111285,1753210267796,-889.22,0.00022027,2]
[374111286,1753210267808,-967.41,0.00022027,2]
[374111287,1753210267818,-3933.01,0.00022027,2]
[374111288,1753210267827,-5587.21,0.00022029,2]
[374111289,1753210267837,-1108.38,0.00022029,2]
[374111290,1753210267846,-1005.99,0.00022029,2]
[374111291,1753210267855,-5283.6,0.00022029,2]
[374111292,1753210267864,-1079.55,0.00022029,2]
[374111293,1753210267874,-3137.23,0.00022029,2]
[374111294,1753210267883,-558.47,0.00022029,2]
[374111295,1753210267892,-1196.19,0.00022029,2]
[374111296,1753210267905,-535.59,0.00022029,2]
[374111297,1753210267916,-1079.29,0.00022029,2]
[374111298,1753210267925,-746.62,0.0002203,2]
[374111299,1753210267934,-471.42,0.0002203,2]
[374111300,1753210267943,-632.55,0.0002203,2]
[374111301,1753210267953,-606.59,0.0002203,2]
[374111302,1753210267962,-488.38,0.0002203,2]
[374111303,1753210267971,-278.99692248,0.0002203,2]
[374111304,1753210267981,-460.0,0.0002203,2]
[374111305,1753210267990,-1118.89,0.0002203,2]
[374111306,1753210268000,-731.94,0.0002203,2]
[374111307,1753210268009,-1345.13,0.0002203,2]
[374111308,1753210268018,-1187.11,0.0002203,2]
[374111309,1753210268027,-2137.7,0.0002203,2]
[374111310,1753210268037,-1349.67,0.0002203,2]
[374111311,1753210268046,-1694.69,0.0002203,2]
[374111312,1753210268056,-754.36,0.0002203,2]
[374111313,1753210268065,-929.4,0.0002203,2]
[374111314,1753210268075,-1020.16,0.0002203,2]
[374111315,1753210268084,-646.92,0.0002203,2]
[374111316,1753210268094,-1358.12,0.0002203,2]
[374111317,1753210268103,-460.0,0.0002203,2]
[374111318,1753210268112,-553.33,0.00022031,2]
[374111319,1753210268122,-553.25,0.00022031,2]
[374111320,1753210268133,-1153.71,0.00022031,2]
[374111321,1753210268142,-1418.31,0.00022031,2]
[374111322,1753210268153,-557.74,0.00022031,2]
[374111323,1753210268163,-460.0,0.00022031,2]
[374111324,1753210268173,-1362.87,0.00022031,2]
[374111325,1753210268183,-1064.63,0.00022031,2]
[374111326,1753210268193,-571.13,0.00022031,2]
[374111327,1753210268203,-500.0,0.00022031,2]
[374111328,1753210268212,-151.0,0.00022031,7]
[374111329,1753210268223,-151.0,0.00022031,7]
[374111330,1753210268232,-1351.51,0.00022031,2]
[374111331,1753210268242,-1776.12,0.00022031,2]
[374111332,1753210268252,-2704.27,0.00022031,2]
[374111333,1753210268262,-691.11,0.00022031,2]
[374111334,1753210268273,-460.0,0.00022031,2]
[374111335,1753210268283,-3949.8,0.00022031,2]
[374111336,1753210268293,-863.13,0.00022031,2]
[374111337,1753210268302,-547.67,0.00022031,2]
[374111338,1753210268312,-1345.16,0.00022031,2]
[374111339,1753210268322,-5101.83,0.00022032,2]
[374111340,1753210268331,-1108.99,0.00022032,2]
[374111341,1753210268341,-460.0,0.00022032,2]
[374111342,1753210268351,-605.93,0.00022032,2]
[374111343,1753210268360,-4275.34,0.00022032,2]
[374111344,1753210268371,-688.73,0.00022032,2]
[374111345,1753210268380,-460.0,0.00022032,2]
[374111346,1753210268389,-830.04,0.00022032,2]
[374111347,1753210268398,-524.19,0.00022032,2]
[374111348,1753210268408,-4992.23,0.00022032,2]
[374111349,1753210268417,-3027.97,0.00022032,2]
[374111350,1753210268427,-1465.54,0.00022032,2]
[374111351,1753210268438,-2920.58,0.00022032,2]
[374111352,1753210268448,-4347.26,0.00022032,2]
[374111353,1753210268457,-998.04,0.00022032,2]
[374111354,1753210268467,-2213.22,0.00022033,2]
[374111355,1753210268476,-175.16,0.000221,7]
[374111356,1753210268486,-1943.73,0.000221,7]
[374111357,1753210268495,-293.64,0.000221,7]
[374111358,1753210268503,-1145.09225894,0.00022117,2]
[374111359,1753210268512,-1048.08077661,0.00022139,2]
[374111360,1753210268521,-1501.59567283,0.00022157,2]
[374111361,1753210268532,-5275.87341887,0.00022176,6]
[374111362,1753210268541,-747.0,0.00022235,2]
[374111363,1753210268552,-889.22,0.00022301,2]
[374111364,1753210268562,-967.41,0.00022301,2]
[374111365,1753210268572,-3933.01,0.00022301,2]
[374111366,1753210268582,-5587.21,0.00022303,2]
[374111367,1753210268591,-1108.38,0.00022303,2]
[374111368,1753210268602,-1005.99,0.00022303,2]
[374111369,1753210268611,-5283.6,0.00022303,2]
[374111370,1753210268621,-1079.55,0.00022303,2]
[374111371,1753210268630,-3137.23,0.00022303,2]
[374111372,1753210268639,-558.47,0.00022303,2]
[374111373,1753210268650,-1196.19,0.00022303,2]
[374111374,1753210268659,-535.59,0.00022303,2]
[374111375,1753210268668,-1079.29,0.00022303,2]
[374111376,1753210268678,-746.62,0.00022304,2]
[374111377,1753210268687,-471.42,0.00022304,2]
[374111378,1753210268697,-632.55,0.00022304,2]
[374111379,1753210268706,-606.59,0.00022304,2]
[374111380,1753210268715,-488.38,0.00022304,2]
[374111381,1753210268724,-460.0,0.00022304,2]
[374111382,1753210268734,-1118.89,0.00022304,2]
[374111383,1753210268743,-731.94,0.00022304,2]
[374111384,1753210268752,-1345.13,0.00022304,2]
[374111385,1753210268761,-1187.11,0.00022304,2]
[374111386,1753210268770,-2137.7,0.00022304,2]
[374111387,1753210268780,-1349.67,0.00022304,2]
[374111388,1753210268789,-1694.69,0.00022304,2]
[374111389,1753210268798,-754.36,0.00022304,2]
[374111390,1753210268809,-929.4,0.00022304,2]
[374111391,1753210268818,-1020.16,0.00022304,2]
[374111392,1753210268828,-646.92,0.00022304,2]
[374111393,1753210268837,-1358.12,0.00022304,2]
[374111394,1753210268846,-460.0,0.00022304,2]
[374111395,1753210268855,-553.33,0.00022305,2]
[374111396,1753210268864,-553.25,0.00022305,2]
[374111397,1753210268874,-1153.71,0.00022305,2]
[374111398,1753210268883,-1418.31,0.00022305,2]
[374111399,1753210268893,-557.74,0.00022305,2]
[374111400,1753210268905,-460.0,0.00022305,2]
[374111401,1753210268914,-1362.87,0.00022305,2]
[374111402,1753210268923,-1064.63,0.00022305,2]
[374111403,1753210268933,-571.13,0.00022305,2]
[374111404,1753210268942,-500.0,0.00022305,2]
[374111405,1753210268951,-1351.51,0.00022305,2]
[374111406,1753210268960,-1776.12,0.00022305,2]
[374111407,1753210268970,-2704.27,0.00022305,2]
[374111408,1753210268980,-691.11,0.00022305,2]
[374111409,1753210268990,-460.0,0.00022305,2]
[374111410,1753210268999,-3949.8,0.00022305,2]
[374111411,1753210269008,-863.13,0.00022305,2]
[374111412,1753210269018,-547.67,0.00022305,2]
[374111413,1753210269027,-1345.16,0.00022305,2]
[374111414,1753210269036,-5101.83,0.00022306,2]
[374111415,1753210269046,-1108.99,0.00022306,2]
[374111416,1753210269056,-436.64,0.00022306,2]
[374111417,1753210269065,-605.93,0.00022306,2]
[374111418,1753210269074,-4275.34,0.00022306,2]
[374111419,1753210269083,-688.73,0.00022306,2]
[374111420,1753210269093,-460.0,0.00022306,2]
[374111421,1753210269177,-830.04,0.00022306,2]
[374111422,1753210269201,-524.19,0.00022306,2]
[374111423,1753210269212,-4992.23,0.00022306,2]
[374111424,1753210269221,-3027.97,0.00022306,2]
[374111425,1753210269231,-1529.26,0.00022306,2]
[374111426,1753210269240,-2920.58,0.00022306,2]
[374111427,1753210269249,-998.04,0.00022306,2]
[374111428,1753210269258,-2213.22,0.00022307,2]
[374111429,1753210269267,-2181.72681876,0.00022352,2]
[374111430,1753210269277,-760.0,0.00022359,2]
[374111431,1753210269286,-1257.47,0.00022373,2]
[374111432,1753210269296,-735.029,0.00022384,2]
[374111433,1753210269307,-2157.0,0.00022384,2]
[374111434,1753210269315,-978.613,0.00022384,2]
[374111435,1753210269324,-407.0,0.00022384,2]
[374111436,1753210269334,-747.0,0.00022402,2]
[374111437,1753210269343,-387.6488,0.0002241,6]
[374111438,1753210269352,-168.0,0.00022446,2]
[374111439,1753210269361,-938.3512,0.00022452,5]
[374111440,1753210269370,-168.0,0.00022463,2]
[374111441,1753210269379,-1849.4,0.00022465,2]
[374111442,1753210269388,-300.0,0.00022466,2]
[374111443,1753210269398,-250.0,0.00022466,2]
[374111444,1753210269407,-747.0,0.00022484,2]
[374111445,1753210269417,-5275.87341887,0.00022486,7]
[374111446,1753210269426,-231.28369723,0.00022502,2]
[374111447,1753210269436,-747.0,0.00022534,2]
[374111448,1753210269446,-2500.0,0.00022564,2]
[374111449,1753210269456,-889.22,0.00022575,2]
[374111450,1753210269468,-967.41,0.00022575,2]
[374111451,1753210269477,-3933.01,0.00022575,2]
[374111452,1753210269487,-5587.21,0.00022576,2]
[374111453,1753210269496,-1108.38,0.00022576,2]
[374111454,1753210269506,-1005.99,0.00022576,2]
[374111455,1753210269515,-5283.6,0.00022576,2]
[374111456,1753210269525,-1079.55,0.00022576,2]
[374111457,1753210269534,-3137.23,0.00022576,2]
[374111458,1753210269544,-558.47,0.00022576,2]
[374111459,1753210269555,-1196.19,0.00022576,2]
[374111460,1753210269565,-535.59,0.00022576,2]
[374111461,1753210269574,-1079.29,0.00022576,2]
[374111462,1753210269583,-746.62,0.00022578,2]
[374111463,1753210269593,-471.42,0.00022578,2]
[374111464,1753210269602,-632.55,0.00022578,2]
[374111465,1753210269612,-606.59,0.00022578,2]
[374111466,1753210269621,-488.38,0.00022578,2]
[374111467,1753210269631,-278.06075144,0.00022578,2]
[374111468,1753210269640,-1118.89,0.00022578,2]
[374111469,1753210269649,-731.94,0.00022578,2]
[374111470,1753210269658,-1345.13,0.00022578,2]
[374111471,1753210269667,-1187.11,0.00022578,2]
[374111472,1753210269677,-2137.7,0.00022578,2]
[374111473,1753210269686,-1349.67,0.00022578,2]
[374111474,1753210269695,-1694.69,0.00022578,2]
[374111475,1753210269704,-754.36,0.00022578,2]
[374111476,1753210269713,-929.4,0.00022578,2]
[374111477,1753210269723,-1020.16,0.00022578,2]
[374111478,1753210269732,-646.92,0.00022578,2]
[374111479,1753210269741,-1358.12,0.00022578,2]
[374111480,1753210269750,-332.40075587,0.00022578,2]
[374111481,1753210269759,-553.33,0.00022579,2]
[374111482,1753210269768,-553.25,0.00022579,2]
[374111483,1753210269778,-1153.71,0.00022579,2]
[374111484,1753210269787,-1418.31,0.00022579,2]
[374111485,1753210269798,-557.74,0.00022579,2]
[374111486,1753210269809,-460.0,0.00022579,2]
[374111487,1753210269819,-1362.87,0.00022579,2]
[374111488,1753210269828,-1064.63,0.00022579,2]
[374111489,1753210269838,-571.13,0.00022579,2]
[374111490,1753210269847,-500.0,0.00022579,2]
[374111491,1753210269857,-1351.51,0.00022579,2]
[374111492,1753210269866,-1776.12,0.00022579,2]
[374111493,1753210269875,-2704.27,0.00022579,2]
[374111494,1753210269885,-691.11,0.00022579,2]
[374111495,1753210269895,-460.0,0.00022579,2]
[374111496,1753210269910,-3949.8,0.00022579,2]
[374111497,1753210269919,-863.13,0.00022579,2]
[374111498,1753210269929,-547.67,0.00022579,2]
[374111499,1753210269938,-1345.16,0.00022579,2]
[374111500,1753210269948,-5101.83,0.0002258,2]
[374111501,1753210269957,-1108.99,0.0002258,2]
[374111502,1753210269966,-605.93,0.0002258,2]
[374111503,1753210269976,-4275.34,0.0002258,2]
[374111504,1753210269986,-688.73,0.0002258,2]
[374111505,1753210269996,-460.0,0.0002258,2]
[374111506,1753210270005,-830.04,0.0002258,2]
[374111507,1753210270014,-524.19,0.0002258,2]
[374111508,1753210270023,-4992.23,0.0002258,2]
[374111509,1753210270032,-3027.97,0.0002258,2]
[374111510,1753210270041,-1529.26,0.0002258,2]
[374111511,1753210270051,-3047.56,0.0002258,2]
[374111512,1753210270060,-998.04,0.0002258,2]
[374111513,1753210270070,-2213.22,0.00022581,2]
[374111514,1753210270080,-400.0,0.00022603,2]
[374111515,1753210270090,-168.0,0.00022608,2]
[374111516,1753210270099,-168.0,0.00022681,2]
[374111517,1753210270108,-747.0,0.00022711,2]
[374111518,1753210270117,-1145.09225894,0.00022712,2]
[374111519,1753210270127,-5275.87341887,0.00022797,7]
[374111520,1753210270137,-889.22,0.00022849,2]
[374111521,1753210270147,-967.41,0.00022849,2]
[374111522,1753210270156,-3933.01,0.00022849,2]
[374111523,1753210270165,-5587.21,0.0002285,2]
[374111524,1753210270175,-1108.38,0.0002285,2]
[374111525,1753210270184,-1005.99,0.0002285,2]
[374111526,1753210270194,-5283.6,0.0002285,2]
[374111527,1753210270203,-1079.55,0.0002285,2]
[374111528,1753210270212,-3137.23,0.0002285,2]
[374111529,1753210270222,-558.47,0.0002285,2]
[374111530,1753210270231,-1196.19,0.0002285,2]
[374111531,1753210270241,-535.59,0.0002285,2]
[374111532,1753210270250,-1079.29,0.0002285,2]
[374111533,1753210270259,-746.62,0.00022852,2]
[374111534,1753210270268,-471.42,0.00022852,2]
[374111535,1753210270278,-632.55,0.00022852,2]
[374111536,1753210270287,-606.59,0.00022852,2]
[374111537,1753210270296,-488.38,0.00022852,2]
[374111538,1753210270305,-1118.89,0.00022852,2]
[374111539,1753210270314,-731.94,0.00022852,2]
[374111540,1753210270323,-1345.13,0.00022852,2]
[374111541,1753210270333,-1187.11,0.00022852,2]
[374111542,1753210270342,-2137.7,0.00022852,2]
[374111543,1753210270351,-1349.67,0.00022852,2]
[374111544,1753210270361,-1694.69,0.00022852,2]
[374111545,1753210270370,-754.36,0.00022852,2]
[374111546,1753210270379,-929.4,0.00022852,2]
[374111547,1753210270388,-1020.16,0.00022852,2]
[374111548,1753210270398,-646.92,0.00022852,2]
[374111549,1753210270407,-1358.12,0.00022852,2]
[374111550,1753210270418,-553.33,0.00022853,2]
[374111551,1753210270427,-553.25,0.00022853,2]
[374111552,1753210270437,-1153.71,0.00022853,2]
[374111553,1753210270446,-1418.31,0.00022853,2]
[374111554,1753210270455,-557.74,0.00022853,2]
[374111555,1753210270465,-521.23345269,0.00022853,2]
[374111556,1753210270474,-1362.87,0.00022853,2]
[374111557,1753210270483,-1064.63,0.00022853,2]
[374111558,1753210270493,-571.13,0.00022853,2]
[374111559,1753210270502,-500.0,0.00022853,2]
[374111560,1753210270511,-1351.51,0.00022853,2]
[374111561,1753210270521,-1776.12,0.00022853,2]
[374111562,1753210270530,-2704.27,0.00022853,2]
[374111563,1753210270539,-691.11,0.00022853,2]
[374111564,1753210270549,-460.0,0.00022853,2]
[374111565,1753210270559,-3949.8,0.00022853,2]
[374111566,1753210270569,-863.13,0.00022853,2]
[374111567,1753210270578,-547.67,0.00022853,2]
[374111568,1753210270587,-1345.16,0.00022853,2]
[374111569,1753210270597,-756.52001305,0.00022854,2]
[374111570,1753210270607,-5101.83,0.00022854,2]
[374111571,1753210270616,-1108.99,0.00022854,2]
[374111572,1753210270625,-605.93,0.00022854,2]
[374111573,1753210270635,-4275.34,0.00022854,2]
[374111574,1753210270644,-688.73,0.00022854,2]
[374111575,1753210270653,-254.34493393,0.00022854,2]
[374111576,1753210270663,-830.04,0.00022854,2]
[374111577,1753210270673,-524.19,0.00022854,2]
[374111578,1753210270683,-4992.23,0.00022854,2]
[374111579,1753210270693,-1529.26,0.00022854,2]
[374111580,1753210270703,-3047.56,0.00022854,2]
[374111581,1753210270713,-998.04,0.00022854,2]
[374111582,1753210270723,-151.0,0.00022855,7]
[374111583,1753210270732,-151.0,0.00022855,7]
[374111584,1753210270742,-2213.22,0.00022855,2]
[374111585,1753210270751,-860.0,0.00022906,2]
[374111586,1753210270761,-160.0,0.00023,2]
[374111587,1753210270770,-160.0,0.00023,3]
[374111588,1753210270779,-160.0,0.00023,3]
[374111589,1753210270788,-160.0,0.00023,3]
[374111590,1753210270798,-450.0,0.00023014,2]
[374111591,1753210270809,-350.0,0.00023014,2]
[374111592,1753210270818,-551.53610909,0.00023095,2]
[374111593,1753210270828,-2206.14443636,0.00023095,2]
[374111594,1753210270838,-4963.8249818,0.00023095,2]
[374111595,1753210270847,-8824.57774542,0.00023095,2]
[374111596,1753210270857,-5275.87341887,0.00023107,8]
[374111597,1753210270867,-3000.0,0.00023112,2]
[374111598,1753210270877,-889.25,0.00023123,2]
[374111599,1753210270886,-967.62,0.00023123,2]
[374111600,1753210270895,-3933.04217546,0.00023123,2]
[374111601,1753210270909,-5587.30987132,0.00023124,2]
[374111602,1753210270918,-1108.58517066,0.00023124,2]
[374111603,1753210270927,-1006.06,0.00023124,2]
[374111604,1753210270937,-5283.76919086,0.00023124,2]
[374111605,1753210270946,-1079.65,0.00023124,2]
[374111606,1753210270956,-3137.44657274,0.00023124,2]
[374111607,1753210270966,-558.67128678,0.00023124,2]
[374111608,1753210270976,-1196.22005789,0.00023124,2]
[374111609,1753210270987,-535.7440773,0.00023124,2]
[374111610,1753210270997,-1079.47121252,0.00023124,2]
[374111611,1753210271006,-746.70794852,0.00023126,2]
[374111612,1753210271015,-471.48486842,0.00023126,2]
[374111613,1753210271025,-632.58591399,0.00023126,2]
[374111614,1753210271034,-606.65306565,0.00023126,2]
[374111615,1753210271043,-488.38857412,0.00023126,2]
[374111616,1753210271054,-1119.07211879,0.00023126,2]
[374111617,1753210271064,-732.08,0.00023126,2]
[374111618,1753210271074,-1345.24,0.00023126,2]
[374111619,1753210271084,-1187.24,0.00023126,2]
[374111620,1753210271094,-2137.76642957,0.00023126,2]
[374111621,1753210271104,-1349.79696069,0.00023126,2]
[374111622,1753210271113,-1694.84250624,0.00023126,2]
[374111623,1753210271123,-754.4,0.00023126,2]
[374111624,1753210271132,-929.62897484,0.00023126,2]
[374111625,1753210271142,-1020.34,0.00023126,2]
[374111626,1753210271152,-646.93419845,0.00023126,2]
[374111627,1753210271161,-1358.31440285,0.00023126,2]
[374111628,1753210271171,-553.45,0.00023127,2]
[374111629,1753210271180,-553.41788544,0.00023127,2]
[374111630,1753210271189,-1153.93353357,0.00023127,2]
[374111631,1753210271199,-1418.38,0.00023127,2]
[374111632,1753210271208,-557.87,0.00023127,2]
[374111633,1753210271221,-1363.05,0.00023127,2]
[374111634,1753210271236,-1064.79,0.00023127,2]
[374111635,1753210271246,-571.21459277,0.00023127,2]
[374111636,1753210271255,-344.03969632,0.00023127,2]
[374111637,1753210271264,-1351.51,0.00023127,2]
[374111638,1753210271275,-1776.17650395,0.00023127,2]
[374111639,1753210271285,-2704.27,0.00023127,2]
[374111640,1753210271296,-691.26377801,0.00023127,2]
[374111641,1753210271308,-298.79968,0.00023127,7]
[374111642,1753210271318,-333.26850717,0.00023127,2]
[374111643,1753210271327,-3949.8,0.00023127,2]
[374111644,1753210271337,-863.36618497,0.00023127,2]
[374111645,1753210271353,-547.68,0.00023127,2]
[374111646,1753210271367,-1345.16,0.00023127,2]
[374111647,1753210271377,-5102.01,0.00023128,2]
[374111648,1753210271387,-1109.21244762,0.00023128,2]
[374111649,1753210271396,-606.1,0.00023128,2]
[374111650,1753210271406,-4275.39,0.00023128,2]
[374111651,1753210271416,-688.83946486,0.00023128,2]
[374111652,1753210271426,-830.04,0.00023128,2]
[374111653,1753210271437,-524.19,0.00023128,2]
[374111654,1753210271446,-4992.23,0.00023128,2]
[374111655,1753210271457,-1529.4337927,0.00023128,2]
[374111656,1753210271468,-3047.56,0.00023128,2]
[374111657,1753210271478,-998.04,0.00023128,2]
[374111658,1753210271489,-2213.45,0.00023129,2]
[374111659,1753210271500,-201.16625589,0.00023288,2]
[374111660,1753210271510,-3946.19,0.00023295,2]
[374111661,1753210271520,-32663.07,0.000233,2]
[374111662,1753210271530,-1145.09225894,0.00023307,2]
[374111663,1753210271540,-1000.0,0.00023338,2]
[374111664,1753210271550,-1351.6864266,0.00023401,2]
[374111665,1753210271689,-2704.5,0.00023401,2]
[374111666,1753210271699,-3949.92514911,0.00023401,2]
[374111667,1753210271708,-1345.34,0.00023401,2]
[374111668,1753210271717,-830.04,0.00023402,2]
[374111669,1753210271727,-524.19,0.00023402,2]
[374111670,1753210271737,-4992.23,0.00023402,2]
[374111671,1753210271746,-3047.56,0.00023402,2]
[374111672,1753210271755,-998.04,0.00023402,2]
[374111673,1753210271764,-5275.87341887,0.00023417,9]
[374111674,1753210271774,-960.0,0.00023454,2]
[374111675,1753210271784,-1600.0,0.0002346,2]
[374111676,1753210271793,-500.0,0.00023516,2]
[374111677,1753210271804,-155.639926,0.00023535,2]
[374111678,1753210271813,-451.05818763,0.00023562,2]
[374111679,1753210271823,-450.0,0.00023562,2]
[374111680,1753210271832,-3946.19,0.00023569,2]
[374111681,1753210271841,-500.0,0.00023589,2]
[374111682,1753210271851,-1000.0,0.00023593,2]
[374111683,1753210271863,-500.0,0.00023656,2]
[374111684,1753210271878,-3500.0,0.0002366,2]
[374111685,1753210271888,-830.04,0.00023676,2]
[374111686,1753210271898,-524.23635903,0.00023676,2]
[374111687,1753210271916,-4992.45645506,0.00023676,2]
[374111688,1753210271926,-3047.7772117,0.00023676,2]
[374111689,1753210271935,-998.14728882,0.00023676,2]
[374111690,1753210271946,-5275.87341887,0.00023728,9]
[374111691,1753210271955,-2227.520759,0.00023737,2]
[374111692,1753210271964,-1000.0,0.00023771,2]
[374111693,1753210271974,-3946.19,0.00023843,2]
[374111694,1753210271985,-2057.57,0.00023852,2]
[374111695,1753210271994,-1600.0,0.00023861,2]
[374111696,1753210272004,-239.84119403,0.00023871,2]
[374111697,1753210272013,-500.0,0.00023871,2]
[374111698,1753210272022,-1600.0,0.00023881,2]
[374111699,1753210272031,-885.0,0.00023887,2]
[374111700,1753210272041,-2631.60676088,0.000239,2]
[374111701,1753210272050,-1145.09225894,0.00023902,2]
[374111702,1753210272060,-432.50106456,0.00023927,2]
[374111703,1753210272070,-830.11585721,0.0002395,2]
[374111704,1753210272079,-1000.0,0.0002397,2]
[374111705,1753210272089,-1600.0,0.00023974,2]
[374111706,1753210272098,-1060.0,0.00024002,2]
[374111707,1753210272107,-1600.0,0.00024012,2]
[374111708,1753210272117,-1600.0,0.00024034,2]
[374111709,1753210272126,-5275.87341887,0.00024038,10]
[374111710,1753210272136,-1600.0,0.00024059,2]
[374111711,1753210272146,-293.64,0.000241,7]
[374111712,1753210272157,-381.13749435,0.0002411,2]
[374111713,1753210272167,-3946.19,0.00024117,2]
[374111714,1753210272177,-293.85068442,0.00024129,2]
[374111715,1753210272186,-1000.0,0.00024132,2]
[374111716,1753210272196,-155.639926,0.00024137,3]
[374111717,1753210272206,-1600.0,0.00024187,2]
[374111718,1753210272216,-1943.73,0.000242,7]
[374111719,1753210272225,-1886.2,0.00024237,2]
[374111720,1753210272234,-1600.0,0.00024279,2]
[374111721,1753210272243,-175.16,0.000243,7]
[374111722,1753210272252,-600.0,0.00024313,2]
[374111723,1753210272262,-1000.0,0.00024328,2]
[374111724,1753210272271,-1000.0,0.00024336,2]
[374111725,1753210272281,-5275.87341887,0.00024348,11]
[374111726,1753210272290,-1600.0,0.00024391,2]
[374111727,1753210272300,-3946.19,0.00024391,2]
[374111728,1753210272310,-155.639926,0.00024409,2]
[374111729,1753210272319,-1000.0,0.00024438,2]
[374111730,1753210272329,-1000.0,0.00024439,2]
[374111731,1753210272338,-190.0,0.00024442,2]
[374111732,1753210272348,-1145.09225894,0.00024497,2]
[374111733,1753210272357,-1160.0,0.0002455,2]
[374111734,1753210272367,-600.0,0.00024566,2]
[374111735,1753210272377,-500.0,0.00024569,2]
[374111736,1753210272386,-500.0,0.00024585,2]
[374111737,1753210272396,-173.31302,0.00024598,8]
[374111738,1753210272405,-32663.07,0.000246,2]
[374111739,1753210272415,-500.0,0.00024619,2]
[374111740,1753210272425,-658.77,0.00024639,10]
[374111741,1753210272435,-307.2601571,0.00024655,2]
[374111742,1753210272445,-380.0,0.00024658,2]
[374111743,1753210272455,-5275.87341887,0.00024659,11]
[374111744,1753210272464,-3946.19,0.00024665,2]
[374111745,1753210272475,-151.0,0.000247,8]
[374111746,1753210272485,-155.639926,0.00024706,3]
[374111747,1753210272494,-909.00000909,0.00024765,14]
[374111748,1753210272504,-1212.12121212,0.00024766,14]
[374111749,1753210272514,-1000.0,0.00024812,2]
[374111750,1753210272523,-500.0,0.00024813,2]
[374111751,1753210272533,-600.0,0.00024819,2]
[374111752,1753210272543,-1600.0,0.00024876,2]
[374111753,1753210272554,-641.97072151,0.000249,9]
[374111754,1753210272563,-1122.08,0.000249,2]
[374111755,1753210272573,-151.0,0.000249,7]
[374111756,1753210272582,-151.0,0.000249,7]
[374111757,1753210272592,-151.0,0.000249,7]
[374111758,1753210272601,-201.154912,0.000249,7]
[374111759,1753210272610,-201.154912,0.000249,7]
[374111760,1753210272619,-349939.45140299,0.000249,2]
[374111761,1753210275239,7114.2760651,0.00016615,2]
[374111762,1753210369586,2000.0,0.00025218,30]
[374111763,1753210370076,2000.0,0.00025218,30]
[374111764,1753210370506,1016.699999,0.00025218,30]
[374111765,1753210379566,255.0,0.00016652,2]
[374111768,1753210474943,99117.9322524,0.00015823,2]
[374111769,1753210683641,29470.5575396,0.0001595,2]
[374111770,1753210700002,70000.0,0.00016722,2]
[374111771,1753210755331,24900.0,0.00015823,2]
[374111772,1753210865499,48607.78136651,0.00016722,2]
[374111773,1753210972651,983.3,0.00025144,30]
[374111774,1753211133915,1117.0,0.00026027,120]
[374111775,1753211144879,626.129534,0.00013699,2]
[374111778,1753211215343,10000.0,0.00015818,2]
[374111789,1753211388062,1263.5123937,0.00015944,2]
[374111828,1753211431996,-654.86091982,0.00016815,3]
[374111835,1753211432049,-95.34908018,0.00016815,3]